bitfinex-derivatives/quotes_ETHF0:USTF0_20250909
["timestamp","ask_amount","ask_price","bid_price","bid_amount"]
[1757385879126,0.21359272,4291.8,4291.7,0.9547]
[1757385879931,0.00349272,4291.8,4291.7,0.9547]
[1757385883133,0.00349272,4291.8,4291.7,0.7197]
[1757385883330,0.00349272,4291.8,4291.7,2.14938024]
[1757385884830,0.00349272,4291.8,4291.7,0.9547]
[1757385884831,0.41139272,4291.8,4291.7,0.9547]
[1757385885030,0.65129272,4291.8,4291.7,0.7427]
[1757385885227,0.65129272,4291.8,4291.7,0.5077]
[1757385885428,5.05377296,4291.8,4291.7,0.5077]
[1757385885628,5.05377296,4291.8,4291.7,0.5407]
[1757385886227,5.05377296,4291.8,4291.7,0.5418]
[1757385886734,3.85909272,4291.8,4291.7,0.5418]
[1757385886931,0.65129272,4291.8,4291.7,0.7566]
[1757385887132,0.41139272,4291.8,4291.7,0.7566]
[1757385887436,0.41139272,4291.8,4291.7,0.9629]
[1757385887825,0.65179272,4291.8,4291.7,0.9629]
[1757385888024,0.65179272,4291.8,4291.7,0.7566]
[1757385888224,0.65179272,4291.8,4291.7,0.3068]
[1757385889437,0.65179272,4291.8,4291.7,0.5216]
[1757385889735,0.41139272,4291.8,4291.7,0.7279]
[1757385891839,0.65179272,4291.8,4291.7,0.7279]
[1757385893138,3.85959272,4291.8,4291.7,0.3068]
[1757385893331,0.6669,4291.7,4291.6,0.5216]
[1757385893737,0.6669,4291.7,4291.6,0.3068]
[1757385893936,0.6669,4291.7,4291.6,0.5216]
[1757385894334,3.21129272,4291.8,4291.6,0.4211]
[1757385894533,3.21129272,4291.8,4291.7,0.3068]
[1757385894737,3.42359272,4291.8,4291.7,0.7279]
[1757385895444,3.63779272,4291.8,4291.7,0.7279]
[1757385896051,3.21129272,4291.8,4291.7,0.7279]
[1757385896344,0.00349272,4291.8,4291.7,2.23375597]
[1757385896646,0.00349272,4291.8,4291.7,2.46875597]
[1757385901548,0.21579272,4291.8,4291.7,0.9629]
[1757385902652,0.21579272,4291.8,4291.7,0.7279]
[1757385902848,0.42999272,4291.8,4291.7,0.9629]
[1757385905349,0.42999272,4291.8,4291.7,0.7279]
[1757385905550,0.4265,4291.6,4291.1,3.2078]
[1757385905750,0.6669,4291.5,4291.4,0.2148]
[1757385906154,0.6669,4291.5,4291.4,0.5216]
[1757385906550,0.6669,4291.5,4291.0,0.127]
[1757385906745,0.6669,4291.2,4291.1,0.5216]
[1757385909452,0.4265,4291.2,4291.1,0.7279]
[1757385910448,3.2078,4291.3,4291.2,0.3068]
[1757385910653,3.2078,4291.3,4291.2,0.7279]
[1757385911454,3.4201,4291.3,4291.2,0.7279]
[1757385913857,3.6343,4291.3,4291.2,0.7279]
[1757385914357,3.8747,4291.3,4291.2,0.7279]
[1757385916554,3.8747,4291.3,4291.2,0.3068]
[1757385917253,0.1957,4290.7,4290.6,0.7278]
[1757385918958,0.3939,4290.7,4290.6,0.7278]
[1757385919262,0.6339,4290.7,4290.6,0.7278]
[1757385920665,0.6339,4290.7,4290.6,0.3176]
[1757385921659,0.6339,4290.2,4290.1,33.8856]
[1757385921963,0.6339,4290.2,4290.1,0.5305]
[1757385922362,0.3939,4290.2,4290.1,0.5305]
[1757385922565,0.3939,4290.2,4290.1,0.7278]
[1757385926967,0.6339,4290.2,4290.1,0.7278]
[1757385927455,0.3939,4289.7,4289.6,0.5305]
[1757385927670,0.1957,4289.7,4289.6,0.7278]
[1757385927969,0.1982,4289.8,4289.7,0.7278]
[1757385928158,0.3939,4289.8,4289.7,0.7278]
[1757385931272,0.1957,4289.8,4289.7,0.7278]
[1757385933875,3.4428,4290.3,4290.0,0.6384]
[1757385934173,3.8367,4290.3,4290.2,0.5305]
[1757385934670,4.0768,4290.3,4290.2,0.5305]
[1757385935378,3.2078,4290.3,4290.2,0.7278]
[1757385935678,3.2078,4290.9,4290.8,0.7278]
[1757385935874,3.2078,4290.9,4290.8,2.23365597]
[1757385936475,3.2078,4291.5,4291.4,0.7278]
[1757385936773,0.00349272,4291.8,4291.7,0.7278]
[1757385936967,3.2078,4292.2,4292.0,0.1235]
[1757385937162,3.2078,4292.2,4292.1,0.7278]
[1757385937574,3.8453,4292.2,4292.1,0.3176]
[1757385937969,7.6017,4292.2,4291.6,0.3176]
[1757385938167,3.8453,4291.7,4291.6,0.3176]
[1757385938677,3.6017,4291.7,4291.3,0.3176]
[1757385938866,0.3939,4291.3,4291.2,0.9628]
[1757385939066,0.1957,4291.3,4291.2,0.9628]
[1757385939270,0.1957,4291.3,4291.2,0.7278]
[1757385939769,0.3939,4291.3,4291.0,0.1235]
[1757385939976,0.1957,4290.8,4290.7,0.7278]
[1757385940569,3.2078,4291.2,4291.1,0.7278]
[1757385942178,3.6017,4291.2,4291.1,0.3176]
[1757385942380,3.8454,4291.2,4291.1,0.5305]
[1757385942777,3.8454,4291.2,4291.1,0.3176]
[1757385942975,3.8454,4291.2,4290.7,0.235]
[1757385942976,0.2437,4291.1,4290.7,0.235]
[1757385943183,0.6376,4290.8,4290.7,0.5526]
[1757385943479,0.6376,4290.8,4290.7,0.7655]
[1757385943773,0.3939,4290.8,4290.7,0.7655]
[1757385943979,0.3939,4290.8,4290.7,0.7278]
[1757385944375,0.3939,4290.6,4290.5,0.1235]
[1757385944575,3.8454,4290.6,4290.5,0.3176]
[1757385946379,0.6557,4290.2,4290.1,0.3086]
[1757385946580,0.6557,4289.9,4289.8,0.3086]
[1757385946883,0.4119,4289.9,4289.8,0.7376]
[1757385947775,0.2438,4290.3,4289.8,0.429]
[1757385947976,0.4119,4290.1,4290.0,0.6445]
[1757385948175,0.4119,4290.1,4290.0,0.8592]
[1757385950483,0.6557,4290.1,4290.0,0.8592]
[1757385951875,0.4119,4290.1,4290.0,0.8592]
[1757385952581,0.6557,4290.1,4290.0,0.6445]
[1757385953683,0.1982,4290.1,4290.0,0.8592]
[1757385954084,1.19611421,4290.2,4290.1,0.7376]
[1757385954384,0.2438,4290.4,4290.2,0.3086]
[1757385954586,0.4119,4290.3,4290.2,0.5229]
[1757385954790,0.4119,4290.3,4290.2,0.7376]
[1757385955286,0.6557,4290.3,4290.2,0.7376]
[1757385955489,0.4119,4290.3,4290.2,0.7376]
[1757385957884,3.6197,4290.3,4290.2,0.7376]
[1757385958489,3.8635,4290.3,4290.2,0.3086]
[1757385958686,3.8635,4290.3,4290.2,0.5229]
[1757385960286,4.81581421,4290.3,4290.2,0.7376]
[1757385961288,5.05961421,4290.3,4290.2,0.7376]
[1757385961594,0.1982,4289.8,4289.7,0.5229]
[1757385961786,0.4119,4289.8,4289.7,0.5229]
[1757385961991,0.6557,4289.8,4289.7,0.3086]
[1757385962193,0.6557,4289.8,4289.7,0.5229]
[1757385962393,0.4119,4289.8,4289.7,0.7376]
[1757385962588,0.6557,4289.8,4289.7,0.7376]
[1757385963087,0.4119,4289.8,4289.7,0.7376]
[1757385966394,0.6557,4289.8,4289.7,0.3086]
[1757385967293,3.8635,4289.8,4289.7,0.3086]
[1757385967598,3.8635,4289.8,4289.0,0.1235]
[1757385967795,1.40981421,4289.3,4289.2,0.7376]
[1757385967995,1.60801421,4289.3,4289.2,0.7376]
[1757385969006,1.85181421,4289.3,4289.2,0.3086]
[1757385969198,5.05961421,4289.3,4289.0,0.1235]
[1757385969504,5.05961421,4289.3,4288.5,0.1216]
[1757385969707,5.13571421,4289.3,4289.2,0.429]
[1757385970503,5.37071421,4289.3,4289.2,0.429]
[1757385970904,5.37071421,4289.3,4289.2,0.2143]
[1757385973907,5.37071421,4289.3,4288.5,0.1216]
[1757385974301,1.92791421,4289.0,4288.9,0.2143]
[1757385974507,1.92791421,4289.0,4288.9,0.429]
[1757385975698,0.3199,4288.9,4288.2,3.2078]
[1757385975902,0.7318,4288.9,4288.8,0.2143]
[1757385976103,0.7318,4288.9,4288.8,0.429]
[1757385976400,0.7318,4288.9,4288.8,0.7228]
[1757385977116,0.3065,4289.2,4288.8,0.429]
[1757385977306,3.4428,4289.3,4288.9,0.2938]
[1757385977612,1.90201421,4289.2,4288.6,0.2938]
[1757385979108,1.90201421,4289.2,4289.1,0.6978]
[1757385979510,3.7113,4289.8,4289.7,0.404]
[1757385979710,3.9137,4289.8,4289.7,0.6978]
[1757385979909,3.9137,4289.8,4289.7,0.4947]
[1757385981913,3.9137,4289.8,4289.1,1.19611421]
[1757385982212,1.90201421,4289.3,4289.2,0.4947]
[1757385982809,1.90201421,4289.3,4288.3,1.66547249]
[1757385982810,0.3994,4288.8,4288.7,0.2938]
[1757385983106,0.3065,4288.7,4288.3,3.2078]
[1757385983312,1.31641421,4289.0,4288.4,1.89391421]
[1757385983313,0.7059,4288.5,4288.4,1.89391421]
[1757385984201,0.197,4288.5,4288.4,1.89391421]
[1757385984406,0.197,4288.5,4288.4,0.6978]
[1757385984607,0.7059,4288.5,4288.4,0.6978]
[1757385986118,0.197,4288.5,4288.4,0.6978]
[1757385986516,3.4428,4289.3,4289.1,0.2009]
[1757385986517,0.7059,4289.2,4289.1,0.2009]
[1757385986715,0.7059,4289.2,4288.6,1.19611421]
[1757385987016,0.3065,4289.1,4288.6,1.19611421]
[1757385987214,3.4428,4289.3,4288.6,1.60011421]
[1757385987215,0.7059,4288.7,4288.6,1.60011421]
[1757385987818,0.7059,4288.7,4288.6,1.89391421]
[1757385988614,3.6398,4289.3,4288.7,0.2938]
[1757385988817,3.8422,4289.3,4288.7,0.2938]
[1757385989314,0.7059,4288.8,4288.7,0.6978]
[1757385993616,0.7059,4288.8,4288.4,0.4359]
[1757385993617,0.3065,4288.7,4288.4,0.4359]
[1757385993815,0.7059,4288.5,4288.4,0.7297]
[1757385994016,0.7059,4288.5,4288.4,0.9328]
[1757385995220,0.197,4288.5,4288.4,0.9328]
[1757385995616,0.7059,4288.8,4288.7,0.6978]
[1757385995815,0.7059,4288.8,4288.7,0.4947]
[1757385996618,0.3994,4288.8,4288.4,0.2938]
[1757385996924,0.3065,4288.7,4288.6,0.4947]
[1757385997117,0.7059,4288.7,4288.6,0.4947]
[1757385997514,0.7059,4288.7,4288.6,0.6978]
[1757386003927,0.7059,4288.7,4288.6,0.4947]
[1757386004230,0.8262,4288.5,4288.4,0.2938]
[1757386004420,0.8262,4288.5,4288.4,0.4947]
[1757386005331,0.8262,4288.5,4288.3,3.2078]
[1757386005628,0.8262,4288.5,4288.4,0.4947]
[1757386006326,0.4123,4287.8,4287.7,1.98037249]
[1757386006523,0.4123,4287.4,4287.3,3.9376]
[1757386006727,0.7206,4287.4,4287.3,3.9376]
[1757386007030,0.7206,4287.4,4287.3,4.1726]
[1757386009434,0.7206,4287.4,4287.3,3.9376]
[1757386009732,0.7206,4287.4,4287.3,4.1726]
[1757386010233,0.7206,4287.4,4287.3,3.9376]
[1757386010422,0.7206,4287.4,4287.3,4.1726]
[1757386010942,0.7206,4287.4,4287.3,0.9648]
[1757386011233,0.7206,4287.4,4287.3,0.7298]
[1757386013433,2.2296501,4287.4,4287.3,0.521]
[1757386013629,2.2296501,4287.4,4287.0,0.1278]
[1757386013828,2.2296501,4287.4,4287.1,0.3149]
[1757386014939,2.2296501,4287.4,4287.3,0.521]
[1757386016034,1.9213501,4287.4,4286.9,0.3149]
[1757386016240,0.2005,4286.9,4286.8,4.1726]
[1757386017130,0.3083,4287.1,4286.8,3.8577]
[1757386017330,0.5088,4287.1,4287.0,0.849]
[1757386019442,0.2005,4287.1,4287.0,0.849]
[1757386019944,0.5088,4287.1,4287.0,0.849]
[1757386022143,0.7206,4287.1,4287.0,0.849]
[1757386022337,0.7206,4287.1,4287.0,0.7298]
[1757386025351,0.7206,4287.1,4287.0,0.849]
[1757386029954,3.2078,4287.5,4287.4,0.3149]
[1757386030161,0.9556,4287.6,4287.5,0.849]
[1757386030353,4.1634,4287.6,4287.5,0.7298]
[1757386030549,4.1634,4287.6,4287.5,0.521]
[1757386030851,0.4123,4287.2,4286.8,0.3149]
[1757386031058,2.2296501,4286.9,4286.8,0.521]
[1757386032058,2.2296501,4286.9,4286.6,0.3149]
[1757386032259,5.4374501,4286.9,4286.6,0.3149]
[1757386032454,0.3083,4286.8,4286.3,0.3149]
[1757386032657,0.2005,4286.4,4286.3,0.7298]
[1757386032857,0.7206,4286.4,4286.3,0.521]
[1757386035862,0.7206,4286.4,4286.3,0.7298]
[1757386038658,0.7206,4286.4,4286.3,0.521]
[1757386039463,0.7206,4286.4,4286.1,0.2952]
[1757386039663,2.2406501,4286.2,4286.1,0.5083]
[1757386040863,0.317,4286.1,4285.5,0.3542]
[1757386041164,0.7316,4285.6,4285.5,0.8268]
[1757386042468,0.7316,4285.6,4285.5,0.7076]
[1757386043062,0.7316,4285.6,4285.5,0.8326]
[1757386045362,0.7316,4285.6,4285.5,0.5083]
[1757386045567,0.7316,4285.4,4285.3,0.2952]
[1757386045766,2.2406501,4285.4,4285.3,0.2952]
[1757386045967,2.2406501,4285.4,4285.3,0.5083]
[1757386046872,2.2406501,4285.4,4284.6,0.5302]
[1757386047070,0.7316,4284.8,4284.7,0.7076]
[1757386048573,2.2406501,4284.8,4284.7,0.7076]
[1757386049477,0.7316,4284.8,4284.7,0.7076]
[1757386050073,0.7564,4285.2,4285.1,0.4124]
[1757386050378,4.1744,4285.2,4285.1,0.7076]
[1757386050572,4.1744,4285.2,4285.1,0.5083]
[1757386051076,4.1744,4285.2,4284.6,0.2952]
[1757386051979,0.7316,4284.7,4284.6,0.7076]
[1757386056279,0.7316,4284.7,4284.6,0.5083]
[1757386056679,0.317,4284.6,4284.2,3.2078]
[1757386056886,0.5214,4284.3,4284.2,3.9154]
[1757386057179,0.2044,4284.3,4284.2,3.9154]
[1757386057883,0.317,4284.6,4284.2,3.9154]
[1757386058087,0.5214,4284.6,4284.5,0.8326]
[1757386061290,3.2078,4285.2,4285.1,0.7076]
[1757386061889,3.4122,4285.2,4285.1,0.7076]
[1757386062291,3.7292,4285.2,4285.1,0.7076]
[1757386063292,3.9394,4285.2,4285.1,0.2952]
[1757386063495,3.9394,4285.2,4284.6,0.2952]
[1757386063788,3.9394,4285.2,4285.1,0.5083]
[1757386064293,3.9394,4285.2,4284.6,0.2952]
[1757386064492,1.5090501,4285.0,4284.6,0.2952]
[1757386064691,2.2406501,4285.0,4284.9,0.5083]
[1757386065691,2.3686501,4285.0,4284.9,0.5083]
[1757386066392,2.0516501,4285.0,4284.3,0.3008]
[1757386066685,0.2058,4284.4,4284.3,0.6931]
[1757386067084,0.2058,4284.6,4284.5,0.5107]
[1757386067288,0.5274,4284.6,4284.5,0.8115]
[1757386067694,0.4408,4284.9,4284.8,0.6931]
[1757386067886,0.9634,4284.9,4284.8,0.497]
[1757386068093,0.4068,4284.4,4284.3,0.6931]
[1757386068388,0.4068,4284.4,4284.1,0.3008]
[1757386068389,2.2374501,4284.4,4284.1,0.3008]
[1757386068585,1.9158501,4284.4,4283.8,0.3008]
[1757386068786,1.7148501,4283.9,4283.8,0.6931]
[1757386069090,2.2374501,4283.9,4283.8,0.6931]
[1757386069989,2.2374501,4283.9,4283.5,0.125]
[1757386070196,2.2374501,4283.9,4283.0,3.3328]
[1757386070197,0.7284,4283.9,4283.6,0.3008]
[1757386070391,0.7284,4283.9,4283.1,0.235]
[1757386070690,3.2078,4283.4,4283.3,0.1962]
[1757386070885,3.6146,4283.4,4283.3,0.1962]
[1757386071193,3.6146,4283.4,4282.8,0.47825193]
[1757386071194,3.7313,4283.4,4282.8,0.47825193]
[1757386071396,5.4452501,4282.9,4282.8,0.67445193]
[1757386071894,5.4452501,4282.9,4282.8,0.87055193]
[1757386072093,0.4068,4282.9,4282.8,0.87055193]
[1757386072294,0.2058,4282.9,4282.8,0.87055193]
[1757386073788,0.5274,4283.2,4283.1,0.3923]
[1757386073996,0.5274,4283.2,4283.1,0.6931]
[1757386073997,0.7284,4283.2,4283.1,0.6931]
[1757386074293,1.92845859,4283.2,4283.1,0.6931]
[1757386074793,1.92845859,4283.2,4283.1,0.497]
[1757386074987,0.524,4283.0,4282.9,0.3008]
[1757386075191,2.04565859,4283.0,4282.9,0.3008]
[1757386075391,2.04565859,4283.0,4282.9,0.497]
[1757386075993,2.04565859,4283.0,4282.8,0.17745193]
[1757386076293,3.9362,4282.9,4282.8,0.17745193]
[1757386076501,3.9362,4282.9,4282.8,0.67445193]
[1757386076790,3.9362,4282.9,4282.8,0.17745193]
[1757386077192,3.9362,4282.9,4282.8,0.67445193]
[1757386077395,0.7284,4282.9,4282.8,0.87055193]
[1757386077593,0.9634,4282.9,4282.8,0.87055193]
[1757386078798,3.3245,4283.4,4282.8,0.56975193]
[1757386078799,1.20005859,4283.3,4282.8,0.56975193]
[1757386079000,0.5274,4283.2,4283.1,0.6931]
[1757386079997,0.7284,4283.2,4283.1,0.6931]
[1757386080799,0.3216,4283.2,4282.9,0.3008]
[1757386081100,1.92845859,4283.0,4282.9,0.6931]
[1757386081397,2.04565859,4283.0,4282.8,0.17745193]
[1757386081597,2.28065859,4283.0,4282.8,0.17745193]
[1757386082187,2.28065859,4283.0,4282.8,0.47825193]
[1757386082393,0.7284,4282.9,4282.8,0.67445193]
[1757386083288,0.7284,4282.9,4282.8,0.37365193]
[1757386083495,3.9362,4282.9,4282.8,0.17745193]
[1757386083799,3.9362,4282.9,4282.3,0.3008]
[1757386083989,1.40585859,4282.4,4282.3,0.6931]
[1757386084199,1.72745859,4282.4,4282.3,0.6931]
[1757386084598,1.40585859,4282.4,4282.3,0.6931]
[1757386085302,1.92845859,4282.4,4282.3,0.6931]
[1757386086698,0.4068,4282.4,4282.3,0.6931]
[1757386086894,0.4068,4282.4,4282.0,3.3262]
[1757386086895,0.4408,4282.6,4282.5,0.8115]
[1757386087090,0.2058,4282.6,4282.5,0.8115]
[1757386087296,0.235,4283.0,4282.6,0.3008]
[1757386087497,0.7624,4283.0,4282.9,0.6931]
[1757386087892,0.9634,4283.0,4282.9,0.6931]
[1757386088204,0.9634,4283.0,4282.9,0.497]
[1757386088409,1.0806,4283.0,4282.9,0.497]
[1757386089305,0.9634,4283.0,4282.9,0.497]
[1757386089905,0.2058,4282.2,4282.1,0.6931]
[1757386090397,0.2058,4282.2,4282.1,0.3923]
[1757386090596,0.5274,4282.2,4282.1,0.3923]
[1757386090997,0.5274,4282.2,4282.1,0.6931]
[1757386091207,1.72745859,4282.2,4282.1,0.6931]
[1757386091505,1.92845859,4282.2,4282.1,0.6931]
[1757386091700,1.92845859,4282.2,4282.1,0.1962]
[1757386091899,0.7284,4281.9,4281.1,0.3008]
[1757386092208,0.1172,4282.0,4281.3,0.6931]
[1757386092209,1.92845859,4281.4,4281.3,0.6931]
[1757386092705,1.60685859,4281.4,4281.0,0.3008]
[1757386093005,1.92845859,4281.1,4281.0,0.6931]
[1757386093207,0.2058,4281.1,4281.0,0.8115]
[1757386093598,0.3216,4281.4,4281.1,0.3008]
[1757386093800,0.2058,4281.4,4281.3,0.6931]
[1757386094409,0.5274,4281.4,4281.3,0.6931]
[1757386094806,0.7284,4281.4,4280.7,3.2078]
[1757386095002,0.2058,4280.9,4280.8,0.3923]
[1757386095308,0.2058,4280.9,4280.8,0.6931]
[1757386095509,0.7284,4280.9,4280.8,0.6931]
[1757386096408,1.92845859,4280.9,4280.8,0.6931]
[1757386097012,1.92845859,4280.9,4280.8,0.497]
[1757386097608,2.04515859,4280.9,4280.8,0.497]
[1757386097813,0.8451,4280.9,4280.8,0.6988]
[1757386098305,0.1167,4280.9,4280.8,5.10665859]
[1757386099011,0.1167,4280.9,4280.8,5.34165859]
[1757386099414,0.1167,4280.9,4280.8,4.1416]
[1757386099615,0.1167,4280.9,4280.8,5.34165859]
[1757386100610,0.8351,4280.9,4280.8,0.6988]
[1757386100905,0.535,4280.9,4280.5,0.3544]
[1757386101110,1.91845859,4280.7,4280.6,0.5123]
[1757386101615,0.7184,4280.7,4280.6,0.5123]
[1757386102415,0.7184,4280.7,4280.6,0.7141]
[1757386104211,0.7184,4280.3,4280.2,3.2078]
[1757386104410,0.7184,4280.3,4280.2,3.4136]
[1757386104616,0.7184,4280.3,4280.2,3.7201]
[1757386104817,0.7184,4280.3,4280.2,3.9219]
[1757386106113,0.4183,4280.3,4280.2,3.9219]
[1757386107114,0.2123,4280.3,4280.2,3.9219]
[1757386107316,0.7184,4280.3,4280.2,3.9219]
[1757386110316,0.5124,4280.8,4280.7,0.4076]
[1757386110518,0.7184,4280.8,4280.7,0.7141]
[1757386112820,2.15445859,4280.8,4280.7,0.7141]
[1757386113509,2.15445859,4280.8,4280.2,3.2078]
[1757386113510,1.43605859,4280.8,4280.3,0.3065]
[1757386113713,1.43605859,4280.8,4280.2,3.4136]
[1757386113714,0.7184,4280.7,4280.6,0.7141]
[1757386115016,0.4183,4280.7,4280.3,0.3065]
[1757386115217,0.3001,4280.3,4280.2,0.5123]
[1757386115423,0.7184,4280.3,4280.2,0.5123]
[1757386115718,0.4183,4280.3,4279.7,0.3065]
[1757386115922,0.2123,4279.8,4279.7,0.7141]
[1757386116718,0.3291,4279.8,4279.7,0.7141]
[1757386117419,0.1168,4279.8,4279.7,0.7141]
[1757386117627,0.1168,4279.8,4279.7,1.91415859]
[1757386118824,0.7474,4280.8,4280.7,0.7141]
[1757386119323,0.9534,4280.8,4280.7,0.7141]
[1757386120024,0.4183,4280.4,4280.3,0.5123]
[1757386120214,0.4183,4280.4,4280.1,3.2078]
[1757386120421,1.91845859,4280.2,4280.0,0.3065]
[1757386120814,1.91845859,4280.2,4280.1,0.2058]
[1757386121018,1.91845859,4280.2,4280.1,0.5123]
[1757386122024,0.7184,4280.2,4280.1,0.7141]
[1757386122420,0.2123,4280.2,4280.1,0.7141]
[1757386123518,0.7184,4280.8,4280.7,0.2018]
[1757386123729,0.7184,4280.8,4280.7,0.7141]
[1757386124821,0.7184,4280.8,4280.7,0.2058]
[1757386125028,0.7184,4280.8,4280.2,0.236]
[1757386125227,1.20005859,4280.6,4280.5,0.2058]
[1757386125527,1.91845859,4280.6,4280.5,0.7141]
[1757386125921,0.4183,4280.2,4280.1,3.7201]
[1757386126117,0.7184,4280.2,4280.1,3.7201]
[1757386126323,0.7184,4280.2,4280.1,3.9219]
[1757386126523,0.2123,4280.2,4280.1,3.4219]
[1757386126730,0.5125,4280.2,4280.1,3.4219]
[1757386127230,0.7149,4280.2,4280.1,3.4219]
[1757386128828,0.5125,4280.2,4280.1,3.4219]
[1757386129537,0.2123,4280.2,4280.1,3.4219]
[1757386130233,0.5125,4280.2,4280.1,3.4219]
[1757386131733,0.9429,4280.8,4280.7,0.2072]
[1757386131934,2.67187198,4280.8,4280.7,0.7373]
[1757386132135,1.47181339,4280.8,4280.7,0.2072]
[1757386132334,2.67187198,4280.8,4280.7,0.2072]
[1757386132537,1.47181339,4280.8,4280.7,0.5225]
[1757386132734,2.67187198,4280.8,4280.7,0.5225]
[1757386134336,1.47181339,4280.8,4280.7,0.5225]
[1757386135535,1.47181339,4280.8,4280.7,0.7373]
[1757386135735,0.52891339,4280.8,4280.7,0.7373]
[1757386135928,3.2078,4281.5,4281.0,0.1184]
[1757386136125,0.2043,4281.8,4281.7,0.422]
[1757386136334,0.7069,4281.8,4281.7,0.7373]
[1757386136527,1.24199779,4281.8,4281.7,0.7373]
[1757386136731,0.73939779,4281.8,4281.7,0.7373]
[1757386137030,3.3364,4282.5,4281.8,0.3153]
[1757386137230,3.4121,4282.5,4282.4,0.7373]
[1757386137433,3.2078,4282.5,4282.4,0.7373]
[1757386137638,0.7069,4283.1,4283.0,0.7373]
[1757386137834,0.9429,4283.1,4283.0,0.7373]
[1757386138340,0.1286,4283.0,4282.7,0.3153]
[1757386138638,2.2206091,4282.8,4282.7,0.5225]
[1757386139737,2.2206091,4282.8,4282.7,0.7373]
[1757386140134,0.7069,4282.8,4282.7,0.7373]
[1757386140635,1.7497091,4283.5,4283.0,0.8557]
[1757386140830,0.2043,4283.2,4283.1,0.3153]
[1757386141035,0.2043,4283.2,4283.1,0.7373]
[1757386141233,0.7069,4283.2,4283.1,0.7373]
[1757386141434,0.1286,4282.5,4282.0,3.6415]
[1757386141636,0.8355,4282.5,4282.4,0.7373]
[1757386142031,0.7069,4282.5,4282.4,0.7373]
[1757386142535,0.5353,4282.5,4282.0,3.5231]
[1757386142728,0.7069,4282.1,4282.0,0.2072]
[1757386143427,0.7069,4282.1,4282.0,0.7373]
[1757386145740,3.2078,4282.9,4282.7,0.2072]
[1757386145741,2.2206091,4282.8,4282.7,0.2072]
[1757386145935,0.9429,4282.8,4282.7,0.7373]
[1757386146143,0.7405,4282.8,4282.7,0.7373]
[1757386146341,0.5362,4283.3,4282.8,0.3153]
[1757386146539,3.2078,4283.9,4283.5,0.1184]
[1757386146843,3.6145,4283.9,4283.8,0.7373]
[1757386147145,4.1507,4283.9,4283.8,0.7373]
[1757386147832,4.1507,4283.9,4283.8,0.2072]
[1757386148441,4.1507,4283.9,4283.8,0.7373]
[1757386148840,4.1507,4283.9,4283.8,0.422]
[1757386149647,0.4067,4283.3,4283.2,0.5225]
[1757386149856,0.8355,4283.0,4282.9,3.415]
[1757386150054,0.5045,4283.0,4282.9,3.9451]
[1757386150258,0.7069,4283.5,4283.4,0.422]
[1757386150459,0.7069,4283.5,4283.4,0.7373]
[1757386150860,0.236,4283.6,4283.4,0.7373]
[1757386151059,0.236,4283.6,4283.5,0.8557]
[1757386151257,0.2043,4283.6,4283.5,0.8557]
[1757386152159,3.2078,4283.9,4283.8,0.422]
[1757386152358,3.4121,4283.9,4283.8,0.7373]
[1757386153266,3.9147,4283.9,4283.8,0.2072]
[1757386153760,3.9147,4283.9,4283.0,0.1184]
[1757386154058,3.9147,4283.9,4283.1,0.3153]
[1757386154259,0.236,4283.8,4283.2,0.3153]
[1757386154466,0.236,4283.8,4283.7,0.7373]
[1757386154467,0.9429,4283.8,4283.7,0.7373]
[1757386155965,0.7069,4283.8,4283.7,0.7373]
[1757386157766,0.7069,4283.8,4283.7,0.422]
[1757386158066,0.7069,4283.8,4283.0,0.1184]
[1757386158067,3.7297,4283.9,4283.8,0.7239]
[1757386158265,3.936,4283.9,4283.8,0.7239]
[1757386158469,3.936,4283.9,4283.8,0.2001]
[1757386159058,3.936,4283.9,4283.8,0.525]
[1757386159265,3.936,4283.9,4283.8,0.2001]
[1757386159766,3.936,4283.9,4283.8,0.7239]
[1757386160260,0.2063,4283.9,4283.8,0.7239]
[1757386161166,0.3153,4284.2,4283.8,0.399]
[1757386161364,0.5216,4284.2,4284.1,0.399]
[1757386161560,0.5216,4284.2,4284.1,0.7239]
[1757386162164,0.2063,4284.2,4284.1,0.7239]
[1757386162365,0.5216,4284.2,4284.1,0.7239]
[1757386162764,0.2063,4284.2,4284.1,0.7239]
[1757386163464,3.6517,4284.5,4284.2,0.3249]
[1757386163465,3.2078,4284.5,4284.2,0.3249]
[1757386163764,0.7282,4284.9,4284.8,0.7239]
[1757386166163,0.2063,4284.6,4284.5,0.3188]
[1757386166363,0.7282,4284.6,4284.5,0.8426]
[1757386166570,0.7282,4284.6,4284.5,0.7239]
[1757386167365,0.7282,4284.6,4284.5,0.8426]
[1757386169771,0.7282,4284.6,4284.5,0.7239]
[1757386170273,0.7282,4284.6,4284.5,0.8426]
[1757386171069,0.2063,4284.6,4284.5,0.8426]
[1757386171869,0.3153,4284.9,4284.5,0.8426]
[1757386171870,0.5216,4284.9,4284.8,0.399]
[1757386172071,0.5216,4284.9,4284.8,0.7239]
[1757386172571,0.7282,4284.9,4284.8,0.7239]
[1757386174370,3.4141,4285.1,4285.0,0.5177]
[1757386174578,3.4141,4285.1,4285.0,0.8426]
[1757386174579,4.47061414,4285.1,4285.0,0.8426]
[1757386174773,3.936,4285.1,4285.0,0.8426]
[1757386175472,3.936,4285.1,4285.0,0.7239]
[1757386176370,4.47215714,4285.1,4285.0,0.7239]
[1757386178372,0.74245714,4285.1,4285.0,0.8426]
[1757386178568,0.53615714,4285.1,4285.0,0.8426]
[1757386180370,0.3153,4285.3,4285.0,0.5177]
[1757386180573,4.45569088,4285.8,4285.3,0.3249]
[1757386180767,0.94909676,4285.7,4285.6,0.7239]